bitfinex/quotes_ETHUSD_20241119
["timestamp","ask_amount","ask_price","bid_price","bid_amount"]
[1732021512084,3.19544,3129.5,3128.8,3.19604]
[1732021512300,3.19524,3129.7,3129.2,0.8173]
[1732021512825,3.19524,3129.7,3129.2,4.01299]
[1732021513150,3.19499,3129.9,3129.2,4.01299]
[1732021513151,3.19509,3129.8,3129.3,3.19553]
[1732021513414,6.19452,3130.4,3129.3,3.19553]
[1732021513415,4.01718,3130.3,3129.3,0.401283]
[1732021513603,3.19473,3130.2,3129.6,3.19522]
[1732021513805,3.19501,3129.9,3129.3,3.19551]
[1732021513986,3.19491,3130.0,3129.3,3.19551]
[1732021514319,3.19501,3129.9,3129.3,3.19551]
[1732021514790,6.39007,3129.9,3129.2,4.01293]
[1732021514990,3.19521,3129.7,3129.2,4.01296]
[1732021515192,3.19521,3129.7,3129.2,0.8173]
[1732021515408,3.1956,3129.4,3128.9,0.8202]
[1732021515716,3.19548,3129.5,3128.9,0.8202]
[1732021515927,6.39097,3129.5,3128.9,4.01621]
[1732021516216,6.39177,3129.1,3128.6,0.8199]
[1732021516515,0.400438,3129.5,3128.6,0.8199]
[1732021516516,3.19593,3129.0,3128.6,0.8199]
[1732021517975,3.19574,3129.2,3128.6,0.8199]
[1732021518181,3.19583,3129.1,3128.6,0.8199]
[1732021518621,3.595898,3129.5,3128.9,3.19593]
[1732021518792,3.19539,3129.6,3128.9,3.19593]
[1732021519202,3.1954,3129.5,3128.9,3.19593]
[1732021519586,3.19552,3129.4,3128.8,3.1961]
[1732021519917,3.19552,3129.4,3128.8,7.113376]
[1732021520116,3.19552,3129.4,3128.9,3.19599]
[1732021520306,3.19552,3129.4,3128.8,7.113296]
[1732021520515,3.19586,3129.1,3128.6,0.8199]
[1732021520822,3.1957,3129.3,3128.6,0.8199]
[1732021521005,3.19584,3129.1,3128.6,0.8199]
[1732021521383,3.19608,3128.9,3128.6,0.8199]
[1732021522282,4.57927216,3129.1,3128.0,0.7841]
[1732021522499,3.19654,3128.4,3128.0,0.7841]
[1732021523297,3.19648,3128.5,3128.0,0.7841]
[1732021523492,6.39299,3128.5,3128.0,0.7841]
[1732021523693,3.92333722,3129.0,3128.0,0.7841]
[1732021524001,3.75837216,3128.7,3128.0,0.7841]
[1732021524337,3.1967,3128.3,3128.0,0.7841]
[1732021524552,3.19708,3127.9,3127.7,0.8305]
[1732021524845,3.19684,3128.1,3127.7,0.8305]
[1732021525014,3.19696,3128.0,3127.7,0.8305]
[1732021525217,3.19703,3127.9,3127.4,1.800731]
[1732021525417,3.1973,3127.7,3127.4,1.800731]
[1732021525596,3.1973,3127.7,3127.4,1.1491]
[1732021526096,6.39462,3127.7,3127.4,0.8305]
[1732021526332,6.95513216,3128.2,3126.9,4.00101]
[1732021526333,3.19744,3127.5,3126.9,4.00101]
[1732021527127,3.19744,3127.5,3126.9,0.803]
[1732021527331,3.1977,3127.3,3126.9,0.803]
[1732021527536,6.39585,3127.1,3126.6,0.803]
[1732021527873,3.198,3127.0,3126.6,0.803]
[1732021528252,3.75837216,3127.4,3126.6,0.803]
[1732021528253,3.19805,3126.9,3126.6,0.803]
[1732021528744,3.19826,3126.7,3126.3,0.812]
[1732021529482,3.19821,3126.8,3126.3,0.812]
[1732021529967,3.19822,3126.8,3126.3,0.812]
[1732021530182,3.19826,3126.7,3126.3,0.812]
[1732021530404,3.19854,3126.5,3126.3,0.812]
[1732021530561,3.19855,3126.5,3126.0,0.775]
[1732021530739,6.95638216,3127.0,3126.0,0.775]
[1732021530939,3.19863,3126.4,3126.0,0.775]
[1732021531142,3.19849,3126.5,3126.0,0.775]
[1732021531463,3.19853,3126.5,3126.0,0.775]
[1732021531779,3.19827,3126.7,3126.0,3.97394]
[1732021531981,3.1982,3126.8,3126.1,3.98088796]
[1732021532296,12.98971455,3130.6,3126.1,3.98088796]
[1732021532297,0.08155833,3126.6,3126.2,0.8236]
[1732021532497,0.08116746,3126.7,3126.3,3.3592048]
[1732021532781,0.08114332,3126.5,3126.4,3.19849]
[1732021532979,3.19769,3127.3,3126.4,3.19849]
[1732021533146,3.19769,3127.3,3126.3,0.1605648]
[1732021533147,3.19762,3127.4,3126.7,3.19819]
[1732021533346,0.7723,3127.8,3126.8,0.05995151]
[1732021533584,1.14953,3127.8,3126.8,0.05995151]
[1732021533744,6.39483,3127.6,3127.0,3.19789]
[1732021534091,3.19718,3127.8,3127.2,0.833]
[1732021534249,3.19718,3127.8,3127.2,4.03068]
[1732021534450,3.19696,3128.0,3127.4,3.19753]
[1732021534451,3.197,3128.0,3127.4,3.19753]
[1732021534703,0.8227,3128.4,3127.6,3.19732]
[1732021534846,0.8227,3128.4,3126.6,0.02]
[1732021534847,3.19637,3128.6,3127.9,3.19694]
[1732021535055,3.19637,3128.6,3128.1,3.19682]
[1732021535384,3.19637,3128.6,3128.0,4.01039]
[1732021535553,3.19637,3128.6,3128.0,0.8135]
[1732021535764,3.19614,3128.8,3128.1,3.19682]
[1732021536389,0.7802,3129.3,3128.6,3.1963]
[1732021536683,3.19556,3129.4,3128.8,3.19605]
[1732021536892,3.19534,3129.6,3128.7,0.83]
[1732021537104,0.7791,3130.0,3128.9,3.19599]
[1732021537303,3.19525,3129.7,3129.1,3.19579]
[1732021537450,0.63904,3129.6,3128.9,3.19594]
[1732021537648,3.19522,3129.7,3129.1,3.19579]
[1732021537867,0.639032,3129.6,3128.7,0.83]
[1732021538176,0.639032,3129.6,3128.9,3.19601]
[1732021538177,3.19539,3129.6,3128.9,3.19601]
[1732021538379,3.19542,3129.5,3128.9,3.19601]
[1732021538696,3.75837216,3129.7,3128.7,4.02614]
[1732021538697,3.19573,3129.2,3128.7,0.83]
[1732021538909,3.1955,3129.4,3128.7,0.83]
[1732021539053,3.19602,3128.9,3128.3,7.01308]
[1732021539248,1.08515,3129.3,3128.3,7.01308]
[1732021539249,3.19612,3128.8,3128.3,0.8165]
[1732021539455,3.19598,3129.0,3128.3,0.8165]
[1732021540164,0.07373596,3128.9,3128.4,3.07448132]
[1732021540461,0.07373596,3128.9,3128.3,4.01311]
[1732021540649,3.19589,3129.1,3128.5,3.19638]
[1732021540845,0.07372391,3128.8,3128.5,3.19638]
[1732021541044,3.19589,3129.1,3128.5,3.19638]
[1732021541356,0.07371186,3128.7,3128.4,3.19645]
[1732021541570,0.07369981,3128.6,3128.5,3.19637]
[1732021541769,3.1958,3129.1,3128.5,3.19637]
[1732021541968,3.19592,3129.0,3128.5,3.19637]
[1732021542313,3.19592,3129.0,3128.3,4.414421]
[1732021542314,0.07374801,3129.0,3128.3,4.414421]
[1732021542494,3.19606,3128.9,3128.3,4.414421]
[1732021542969,0.07384609,3128.8,3128.4,3.19651]
[1732021543156,0.07384609,3128.8,3128.4,3.6379421]
[1732021543362,3.19587,3129.1,3128.5,3.1964]
[1732021543553,3.19599,3129.0,3128.4,0.4414321]
[1732021543853,3.26986018,3129.0,3128.4,3.6379421]
[1732021544278,0.07387018,3129.0,3128.5,0.50615204]
[1732021544478,3.19572,3129.2,3128.5,3.19635]
[1732021544961,3.26969003,3129.1,3128.5,3.19635]
[1732021545209,3.26969003,3129.1,3128.6,0.36377821]
[1732021545772,3.19602,3128.9,3128.6,0.36377821]
[1732021545970,0.07384169,3128.8,3128.4,0.4414321]
[1732021546266,0.07384169,3128.8,3128.4,3.1965]
[1732021546484,0.07384169,3128.8,3128.3,4.01305]
[1732021546868,0.07384169,3128.8,3128.3,0.8165]
[1732021547072,3.19581,3129.1,3128.5,3.19632]
[1732021547273,0.07383735,3128.7,3128.5,3.19632]
[1732021547475,3.19581,3129.1,3128.5,3.19632]
[1732021547672,0.0738253,3128.6,3128.5,3.19632]
[1732021547876,3.19581,3129.1,3128.5,3.19632]
[1732021548097,0.0738253,3128.6,3128.5,3.19632]
[1732021548308,3.19564,3129.3,3128.7,3.1962]
[1732021548510,3.19542,3129.5,3128.7,3.1962]
[1732021548675,0.07145608,3129.2,3128.9,3.19598]
[1732021548866,3.19524,3129.7,3129.1,3.1958]
[1732021549086,3.19524,3129.7,3128.9,3.19598]
[1732021549293,3.19545,3129.5,3128.9,3.19598]
[1732021549492,3.19537,3129.6,3128.9,3.19598]
[1732021549721,3.19537,3129.6,3129.0,3.19585]
[1732021550247,3.19522,3129.7,3129.1,3.19573]
[1732021550432,3.19511,3129.8,3129.1,3.19573]
[1732021550637,3.19511,3129.8,3129.2,3.19569]
[1732021550945,3.1949,3130.0,3129.4,0.754]
[1732021551446,3.1943,3130.6,3129.8,3.19503]
[1732021551595,3.1943,3130.6,3130.0,3.19482]
[1732021551800,6.38827,3130.8,3130.2,3.19467]
[1732021552124,3.19411,3130.8,3130.2,3.19467]
[1732021552296,3.97672,3131.0,3130.2,3.19467]
[1732021552633,3.19378,3131.1,3130.5,4.0253]
[1732021552853,3.19389,3131.0,3130.5,4.0253]
[1732021552999,3.19389,3131.0,3130.5,0.831]
[1732021553411,0.319372,3131.1,3130.5,0.831]
[1732021553643,3.19349,3131.4,3130.8,3.194]
[1732021553798,3.19322,3131.7,3131.1,3.19374]
[1732021553999,3.19327,3131.6,3131.0,0.8227]
[1732021554199,3.19317,3131.7,3131.1,3.19368]
[1732021554405,3.75837216,3132.7,3131.0,0.8227]
[1732021554614,3.19261,3132.3,3131.7,0.7672]
[1732021554911,3.19261,3132.3,3131.7,3.96032]
[1732021555108,0.45892722,3132.6,3131.7,3.96032]
[1732021555109,3.19265,3132.2,3131.7,3.96032]
[1732021555425,3.57685565,3132.2,3131.7,3.96032]
[1732021555625,3.19291,3132.0,3131.7,0.7672]
[1732021556028,3.19342,3131.5,3131.3,0.7626]
[1732021556219,3.19357,3131.3,3130.9,0.7626]
[1732021556773,0.06487065,3131.2,3130.9,0.7626]
[1732021557139,3.19321,3131.7,3130.9,0.7626]
[1732021557338,0.06485862,3131.1,3130.9,0.7626]
[1732021557570,3.19325,3131.6,3131.0,0.55]
[1732021557775,3.1928,3132.1,3131.4,3.19343]
[1732021558082,3.1928,3132.1,3131.0,0.55]
[1732021558083,3.19302,3131.9,3131.5,0.7996]
[1732021558379,3.19315,3131.7,3131.5,0.7996]
[1732021558676,3.19302,3131.9,3131.5,0.7996]
[1732021559383,3.19296,3131.9,3131.5,0.7996]
[1732021560304,3.511905,3132.2,3131.6,0.55]
[1732021560472,6.75837216,3133.1,3131.8,0.8285]
[1732021560473,3.1924,3132.5,3131.8,0.8285]
[1732021560673,3.19255,3132.3,3131.9,0.55]
[1732021560850,3.1924,3132.5,3131.9,0.55]
[1732021561192,0.31924,3132.5,3132.0,3.19277]
[1732021561360,3.19216,3132.7,3131.9,0.55]
[1732021561570,3.19225,3132.6,3132.0,3.19283]
[1732021561783,3.19216,3132.7,3132.2,0.7816]
[1732021562151,3.19254,3132.3,3132.2,0.7816]
[1732021562846,3.19241,3132.5,3132.2,0.7816]
[1732021563873,3.19215,3132.7,3132.2,0.7816]
[1732021564109,0.319215,3132.7,3132.2,0.7816]
[1732021564420,3.19254,3132.3,3132.2,0.7816]
[1732021564619,3.19243,3132.5,3132.2,0.7816]
[1732021564830,6.95014216,3133.1,3132.2,0.7816]
[1732021564831,3.19254,3132.3,3132.2,0.7816]
[1732021564987,3.19296,3131.9,3131.8,0.7677]
[1732021565295,3.19314,3131.8,3131.5,0.813]
[1732021565483,3.19325,3131.6,3131.5,0.813]
[1732021565683,0.319296,3131.8,3131.5,0.813]
[1732021565883,6.19187,3133.0,3131.5,4.00633]
[1732021565884,3.19256,3132.3,3131.5,4.00633]
[1732021566129,3.75837216,3132.9,3131.5,0.813]
[1732021566309,3.19254,3132.3,3131.5,0.813]
[1732021566515,3.19311,3131.8,3131.5,0.813]
[1732021567040,3.19287,3132.0,3131.5,0.813]
[1732021567320,3.19296,3131.9,3131.5,0.813]
[1732021567531,3.19342,3131.5,3131.0,0.7627]
[1732021567731,3.832081,3131.5,3131.0,0.7627]
[1732021568533,3.19361,3131.3,3131.0,0.7627]
[1732021568686,3.19376,3131.1,3131.0,0.7627]
[1732021569531,3.19383,3131.1,3130.5,0.82656751]
[1732021569685,3.19383,3131.1,3130.6,3.19423]
[1732021569888,3.19321,3131.7,3131.0,3.19378]
[1732021570186,3.193,3131.9,3131.0,3.19378]
[1732021570187,3.19305,3131.8,3131.1,0.06385526]
[1732021570486,3.25827467,3131.7,3131.1,0.55]
[1732021570685,6.45150467,3131.7,3130.9,3.7627]
[1732021570916,3.25826467,3131.7,3131.0,3.19385]
[1732021571086,0.06503467,3131.7,3130.9,3.7627]
[1732021571293,3.19362,3131.3,3130.7,3.0]
[1732021571516,0.8138,3131.4,3130.6,3.19426]
[1732021571699,3.19369,3131.2,3130.7,3.19415]
[1732021571904,0.06497922,3131.3,3131.0,3.19386]
[1732021572128,0.06497922,3131.3,3130.7,0.399635]
[1732021572129,3.19288,3132.0,3131.1,0.8022]
[1732021572441,3.19305,3131.8,3131.2,3.19358]
[1732021572725,3.19305,3131.8,3131.5,0.55]
[1732021572932,3.512168,3132.0,3131.5,0.55]
[1732021573083,3.19296,3131.9,3131.3,0.55]
[1732021573286,3.19306,3131.8,3131.3,0.55]
[1732021573587,3.19288,3132.0,3131.3,3.74355]
[1732021573783,3.19298,3131.9,3131.3,3.74355]
[1732021574020,3.19298,3131.9,3131.3,4.517488]
[1732021574228,3.19318,3131.7,3131.3,1.323938]
[1732021574531,3.19356,3131.3,3131.1,0.8022]
[1732021574698,3.19343,3131.5,3131.1,0.8022]
[1732021574899,3.19356,3131.3,3131.1,0.8022]
[1732021575412,3.19347,3131.4,3131.1,0.8022]
[1732021575603,3.19332,3131.6,3131.1,0.8022]
[1732021575926,0.7652,3132.2,3131.3,0.55]
[1732021576153,3.75837216,3131.9,3131.1,0.8022]
[1732021576290,3.75837216,3131.9,3130.8,3.194]
[1732021576291,0.7652,3131.4,3130.8,0.55]
[1732021576492,3.19351,3131.4,3130.8,3.74401]
[1732021576939,3.19357,3131.3,3130.8,0.55]
[1732021577091,3.19378,3131.1,3130.6,3.55]
[1732021577288,3.19364,3131.3,3130.6,0.55]
[1732021577523,3.19378,3131.1,3130.6,3.7442]
[1732021577728,3.19378,3131.1,3130.6,0.55]
[1732021578037,3.19378,3131.1,3130.6,3.74426]
[1732021578407,3.19378,3131.1,3130.6,0.55]
[1732021578825,0.638735,3131.1,3130.5,0.8307]
[1732021579027,3.19381,3131.1,3130.5,0.8307]
[1732021579232,3.1937,3131.2,3130.6,3.19424]
[1732021579433,0.37583722,3131.4,3130.5,0.8307]
[1732021579641,3.75837216,3131.5,3130.5,0.8307]
[1732021579642,3.19427,3130.6,3130.5,0.8307]
[1732021580158,3.19415,3130.8,3130.5,0.8307]
[1732021580443,3.19444,3130.5,3130.1,0.7545]
[1732021581145,3.19427,3130.6,3129.8,0.7545]
[1732021581456,3.19494,3130.0,3129.8,0.7545]
[1732021581755,3.195,3129.9,3129.4,0.7545]
[1732021582109,3.19497,3130.0,3129.4,3.94997]
[1732021582309,3.19497,3130.0,3129.4,4.696483]
[1732021582550,3.19472,3130.2,3129.5,3.0]
[1732021582876,3.75837216,3130.7,3129.5,3.0]
[1732021582877,3.19485,3130.1,3129.5,3.0]
[1732021583009,3.19427,3130.6,3129.4,1.40046257]
[1732021583010,3.19536,3129.6,3129.4,1.40046257]
[1732021583215,3.75837216,3130.3,3129.4,0.7545]
[1732021583216,3.19503,3129.9,3129.4,0.7545]
[1732021583410,3.19482,3130.1,3129.5,3.19539]
[1732021583618,3.19447,3130.5,3129.7,3.1951]
[1732021583803,3.19447,3130.5,3129.9,3.19492]
[1732021583804,3.19441,3130.5,3129.9,3.19492]
[1732021584048,6.38806,3130.9,3130.2,3.19467]
[1732021584226,3.19386,3131.0,3130.3,0.319467]
[1732021584404,4.58807216,3131.1,3130.5,3.19431]
[1732021584405,3.19378,3131.1,3130.5,3.19431]
[1732021584609,4.58807216,3131.5,3130.4,1.3556]
[1732021584805,4.58807216,3131.5,3130.4,0.8056]
[1732021584806,3.75837216,3131.1,3130.4,0.8056]
[1732021585117,3.19386,3131.0,3130.4,0.8056]
[1732021585309,0.06260335,3130.9,3130.4,0.8056]
[1732021585512,0.06260335,3130.9,3130.5,3.19437]
[1732021585757,3.19349,3131.4,3130.7,0.55]
[1732021586052,0.06262975,3130.8,3130.7,0.55]
[1732021586205,0.06262975,3130.8,3130.5,0.55]
[1732021586206,3.25669975,3130.8,3130.5,0.55]
[1732021586406,3.25669975,3130.8,3130.5,0.98556]
[1732021586407,0.06262975,3130.8,3130.5,0.98556]
[1732021586603,0.06262975,3130.8,3130.5,4.17993]
[1732021586927,0.06262975,3130.8,3130.6,0.06386999]
[1732021587126,0.06262975,3130.8,3130.5,0.61387054]
[1732021587443,0.06262975,3130.8,3130.7,0.55]
[1732021589359,0.06262975,3130.8,3130.7,3.74417]
[1732021589559,0.06262975,3130.8,3130.7,0.55]
[1732021590464,0.06262975,3130.8,3130.7,3.74417]
[1732021590764,0.06262975,3130.8,3130.7,8.21345354]
[1732021590923,0.06262975,3130.8,3130.7,5.21345354]
[1732021591123,0.06262975,3130.8,3130.7,2.01928354]
[1732021591425,0.06262975,3130.8,3130.7,1.3012]
[1732021591824,0.1231731,3130.8,3130.7,1.3012]
[1732021592231,0.1231731,3130.8,3130.7,4.49537]
[1732021592441,0.1231731,3130.8,3130.7,5.11876702]
[1732021592624,0.1231731,3130.8,3130.7,1.92459702]
[1732021592844,0.1231731,3130.8,3130.7,2.75440432]
[1732021593462,0.1231731,3130.8,3130.7,1.92459702]
[1732021594961,0.1231731,3130.8,3130.7,1.98846728]
[1732021595606,0.1231731,3130.8,3130.7,0.55]
[1732021595812,0.1231731,3130.8,3130.5,0.55]
[1732021596051,0.1231731,3130.8,3130.1,3.0]
[1732021596353,3.75837216,3130.7,3130.0,0.8292]
[1732021596563,3.19461,3130.3,3129.5,0.8313]
[1732021596855,3.19461,3130.3,3129.8,3.19508]
[1732021597065,0.06049318,3130.2,3129.6,3.25908913]
[1732021597371,0.06049318,3130.2,3129.6,0.06388913]
[1732021597372,3.19478,3130.1,3129.6,0.06388913]
[1732021597566,3.19478,3130.1,3129.6,0.40906491]
[1732021597727,0.0604691,3130.0,3129.6,3.60434491]
[1732021597935,6.95279216,3130.5,3129.7,0.44356449]
[1732021598129,0.06048452,3130.4,3129.8,3.25889537]
[1732021598427,0.06048452,3130.4,3129.9,0.7998]
[1732021598644,0.06048452,3130.4,3130.0,0.61388128]
[1732021598863,3.25502452,3130.4,3130.0,0.61388128]
[1732021599029,3.25502452,3130.4,3130.0,0.55]
[1732021599030,3.19454,3130.4,3130.0,0.55]
[1732021599217,0.06049225,3130.3,3130.0,0.55]
[1732021600129,3.19473,3130.2,3129.9,0.7998]
[1732021600326,0.06046873,3130.1,3129.9,0.7998]
[1732021600541,3.19454,3130.4,3130.0,0.55]
[1732021600742,3.25516563,3130.3,3130.0,0.55]
[1732021600943,3.19478,3130.1,3130.0,0.55]
[1732021601159,3.25525156,3130.1,3130.0,0.55]
[1732021601529,0.06047156,3130.1,3130.0,0.55]
[1732021601729,0.06047156,3130.1,3129.9,0.7998]
[1732021601730,3.19468,3130.2,3129.9,0.7998]
[1732021601923,0.06047156,3130.1,3129.9,0.7998]
[1732021602121,3.19468,3130.2,3129.9,0.7998]
[1732021602348,0.06047156,3130.1,3129.6,3.0]
[1732021602556,3.19529,3129.6,3129.5,0.63139473]
[1732021603053,3.25568667,3129.6,3129.5,0.63139473]
[1732021603742,0.06039667,3129.6,3129.5,1.18139473]
[1732021604061,3.19516,3129.8,3129.5,1.18139473]
[1732021604258,0.06036389,3129.6,3129.5,1.18139473]
[1732021604461,3.1949,3130.0,3129.6,0.55]
[1732021604760,6.38908,3130.4,3129.8,4.51567]
[1732021604965,3.19451,3130.4,3129.8,4.57955748]
[1732021605260,3.19464,3130.3,3130.0,0.55]
[1732021605416,3.19485,3130.1,3129.9,0.55]
[1732021606122,6.38972,3130.1,3129.9,0.55]
[1732021606350,3.19495,3130.0,3129.8,0.7706]
[1732021606531,3.19485,3130.1,3129.8,0.7706]
[1732021606831,3.19478,3130.1,3129.8,0.7706]
[1732021607031,3.19458,3130.3,3129.8,1.167189]
[1732021607232,3.19441,3130.5,3129.9,3.76705847]
[1732021607461,3.19441,3130.5,3129.9,0.55]
[1732021607462,3.19458,3130.3,3129.9,0.55]
[1732021607768,3.19458,3130.3,3129.9,1.00378385]
[1732021607972,3.19441,3130.5,3130.0,3.19487]
[1732021608172,3.19441,3130.5,3130.1,0.55]
[1732021608829,3.19448,3130.4,3129.9,0.55]
[1732021609023,3.19452,3130.4,3129.9,4.196491]
[1732021609340,0.06262975,3130.8,3129.9,1.001561]
[1732021609563,0.06262975,3130.8,3130.4,3.19439]
[1732021609727,0.06262975,3130.8,3130.3,0.55]
[1732021609928,3.19428,3130.6,3130.3,0.55]
[1732021610179,3.19428,3130.6,3130.2,0.55]
[1732021610376,3.19428,3130.6,3130.2,1.249734]
[1732021610536,3.19428,3130.6,3130.1,0.55]
[1732021610740,3.19448,3130.4,3130.1,0.55]
[1732021611432,3.19428,3130.6,3130.1,3.74476]
[1732021611630,3.25674975,3130.8,3130.1,3.74476]
[1732021611873,3.25674975,3130.8,3130.2,3.19465]
[1732021612168,3.19417,3130.7,3130.1,4.818944]
[1732021612744,3.19434,3130.6,3130.1,2.25968511]
[1732021612984,3.10497904,3130.4,3129.4,3.19543]
[1732021613305,3.19468,3130.2,3129.7,4.01149]
[1732021613607,3.1945,3130.4,3129.9,3.19498]
[1732021613815,3.1943,3130.6,3130.0,3.19482]
[1732021614112,3.1943,3130.6,3130.1,3.19477]
[1732021614323,3.1943,3130.6,3130.2,0.7865]
[1732021614695,3.19439,3130.5,3130.3,0.55]
[1732021615003,3.1943,3130.6,3130.3,0.55]
[1732021615004,3.19447,3130.4,3130.3,0.55]
[1732021615196,6.29935904,3130.5,3130.3,0.55]
[1732021615393,3.25495565,3130.4,3129.9,0.8208]
[1732021615704,0.7707,3130.3,3129.5,1.4654212]
[1732021616013,3.19509,3129.8,3129.6,0.02015526]
[1732021616223,3.19509,3129.8,3129.5,1.4654212]
[1732021616406,0.06041154,3129.7,3129.5,1.4654212]
[1732021616739,3.19509,3129.8,3129.5,1.4654212]
[1732021616943,0.06041154,3129.7,3129.5,1.4654212]
[1732021617141,3.19509,3129.8,3129.5,1.4654212]
[1732021617298,0.060433,3129.7,3129.5,1.4654212]
[1732021617634,3.19509,3129.8,3129.5,1.4654212]
[1732021617832,0.06040682,3129.6,3129.5,1.4654212]
[1732021618048,3.19509,3129.8,3129.5,1.4654212]
[1732021618199,0.06040682,3129.6,3129.2,0.782]
[1732021618398,3.19563,3129.3,3128.8,0.782]
[1732021618624,0.0603609,3129.5,3128.8,0.782]
[1732021618839,0.06032477,3129.2,3129.0,3.1959]
[1732021619034,3.1954,3129.5,3129.0,3.1959]
[1732021619241,0.06031272,3129.1,3128.9,0.03246074]
[1732021619399,3.1955,3129.4,3128.8,3.9781]
[1732021619599,0.06030067,3129.0,3128.9,3.196]
[1732021619801,3.1954,3129.5,3129.0,3.1959]
[1732021620097,3.1954,3129.5,3129.0,3.25573494]
[1732021620326,3.19535,3129.6,3129.0,3.25573494]
[1732021620537,6.39072,3129.6,3129.0,3.25573494]
[1732021620743,3.19535,3129.6,3129.0,3.25573494]
[1732021621038,3.19539,3129.5,3129.0,3.25573494]
[1732021621241,3.19501,3129.9,3129.3,0.55]
[1732021621449,3.19494,3130.0,3129.5,0.55]
[1732021621740,3.19458,3130.3,3129.5,0.3809339]
[1732021621937,3.19504,3129.9,3129.4,0.55]
[1732021622138,6.39011,3129.9,3129.4,0.55]
[1732021622348,3.19465,3130.3,3129.4,1.619929]
[1732021622651,3.19465,3130.3,3129.7,3.1951]
[1732021622799,3.19443,3130.5,3129.8,3.19507]
[1732021622999,3.19433,3130.6,3130.0,3.74482]
[1732021623248,3.19423,3130.7,3130.2,3.19465]
[1732021623401,3.19427,3130.6,3130.1,3.19477]
[1732021623811,3.19427,3130.6,3130.0,3.74479]
[1732021624046,3.19427,3130.6,3130.0,0.55]
[1732021624286,3.19455,3130.4,3130.0,0.55]
[1732021624492,3.19465,3130.3,3129.9,0.7763]
[1732021624637,3.19455,3130.4,3129.9,0.7763]
[1732021624838,3.19471,3130.2,3129.7,0.55]
[1732021625081,3.19509,3129.8,3129.7,0.55]
[1732021625283,3.19509,3129.8,3129.4,0.55]
[1732021625453,3.19489,3130.0,3129.4,0.55]
[1732021625640,3.19466,3130.3,3129.6,0.55]
[1732021625846,3.19466,3130.3,3129.7,3.19518]
[1732021626284,0.811,3130.7,3129.8,0.771]
[1732021626587,3.19426,3130.7,3130.1,3.19476]
[1732021626745,3.19436,3130.6,3129.9,3.80863558]
[1732021626941,3.19436,3130.6,3130.1,3.74477]
[1732021627144,3.25669975,3130.8,3130.3,0.55]
[1732021627378,3.25669975,3130.8,3130.3,3.74457]
[1732021627767,3.25669975,3130.8,3130.6,3.74421]
[1732021627768,0.06262975,3130.8,3130.6,3.74421]
[1732021628077,0.06262975,3130.8,3130.7,4.56617]
[1732021629050,0.1192651,3130.8,3130.7,4.56617]
[1732021629265,0.1192651,3130.8,3130.7,0.822]
[1732021629648,0.1192651,3130.8,3130.3,3.7781]
[1732021629998,0.1192651,3130.8,3130.7,3.74417]
[1732021630289,0.1192651,3130.8,3130.7,4.58613921]
[1732021632205,0.06262975,3130.8,3130.7,4.58613921]
[1732021632858,0.06262975,3130.8,3130.7,4.52227]
[1732021633086,0.11930567,3130.8,3130.7,4.52227]
[1732021633792,0.06262975,3130.8,3130.7,4.52227]
[1732021633999,0.06262975,3130.8,3130.7,5.30031051]
[1732021634202,0.1193245,3130.8,3130.7,5.30031051]
[1732021635391,0.06262975,3130.8,3130.7,8.30031051]
[1732021635762,0.06262975,3130.8,3130.7,8.92430458]
[1732021639406,0.06262975,3130.8,3130.7,8.94430458]
[1732021639555,0.06262975,3130.8,3130.7,12.70748025]
[1732021639956,0.8198,3132.5,3130.7,12.70748025]
[1732021639957,0.8198,3132.5,3131.8,0.7942]
[1732021640308,3.19232,3132.6,3132.1,0.55]
[1732021640457,0.7578,3132.8,3132.1,0.55]
[1732021640458,0.05482007,3132.4,3132.1,0.55]
[1732021640655,3.24719209,3132.5,3132.1,0.55]
[1732021640893,3.24735805,3132.3,3131.9,0.55]
[1732021641055,3.19236,3132.5,3131.9,0.55]
[1732021641257,0.05481769,3132.2,3131.9,0.55]
[1732021641600,0.05480567,3132.1,3131.9,0.55]
[1732021641990,3.1926,3132.3,3131.9,0.55]
[1732021642184,0.05480791,3132.0,3131.9,0.55]
[1732021642498,3.1926,3132.3,3131.8,0.55]
[1732021642698,0.05480791,3132.0,3131.8,1.2516871]
[1732021642902,0.7584,3132.4,3131.9,3.19293]
[1732021643110,0.7584,3132.4,3131.8,3.74302]
[1732021643111,0.05479018,3131.9,3131.8,3.74302]
[1732021643321,3.96259,3132.7,3131.9,3.19287]
[1732021643460,6.38476,3132.5,3131.8,4.117282]
[1732021643659,3.19252,3132.4,3131.8,3.74298]
[1732021643902,3.2473703,3132.4,3131.8,3.74298]
[1732021644263,3.2473003,3132.4,3131.8,6.93597]
[1732021644565,3.2473003,3132.4,3131.8,4.436577]
[1732021644960,3.2473003,3132.4,3131.9,3.19293]
[1732021645410,3.2473003,3132.4,3132.0,0.55]
[1732021645709,3.2473503,3132.4,3131.8,3.19303]
[1732021645863,3.2473503,3132.4,3131.9,0.55]
[1732021646368,0.0548503,3132.4,3132.0,4.01692]
[1732021646567,3.2472903,3132.4,3132.0,0.8241]
[1732021646830,3.2472903,3132.4,3131.8,0.55]
[1732021646980,3.19271,3132.2,3131.8,0.55]
[1732021647369,0.0549318,3132.1,3132.0,0.55]
[1732021647568,3.19241,3132.5,3132.0,0.55]
[1732021647813,3.19241,3132.5,3131.7,4.01719]
[1732021647814,3.19255,3132.3,3131.8,3.74303]
[1732021648014,0.05494769,3132.4,3131.9,3.19286]
[1732021648213,0.05492138,3132.2,3132.0,0.55]
[1732021648378,0.05495129,3132.3,3132.0,0.55]